bitfinex/quotes_SOLUSD_20240703
["timestamp","ask_amount","ask_price","bid_price","bid_amount"]
[1719972310119,8.64859407,151.85,151.81,0.8283643]
[1719972310347,6.82468769,151.87,151.81,7.4154643]
[1719972310534,6.82468769,151.87,151.82,16.6382]
[1719972310730,6.5888,151.93,151.83,6.1179]
[1719972310933,6.5832,151.91,151.84,0.17]
[1719972311139,13.171,151.93,151.84,0.34]
[1719972311351,6.5825,151.92,151.84,0.34]
[1719972311526,6.5828,151.91,151.84,0.34]
[1719972311723,28.40859407,151.95,151.84,0.34]
[1719972312040,6.5847,151.87,151.83,6.1179]
[1719972312241,6.5841,151.88,151.83,6.1179]
[1719972313062,6.5845,151.88,151.83,6.1179]
[1719972313424,34.87859407,151.95,151.83,6.1179]
[1719972313624,20.0,151.94,151.83,6.1179]
[1719972314456,20.0,151.94,151.81,0.8283643]
[1719972314457,22.5653,151.93,151.81,0.8283643]
[1719972314627,46.23,151.92,151.81,0.8283643]
[1719972314954,8.64859407,151.91,151.81,0.8283643]
[1719972315169,6.5865,151.83,151.81,0.8283643]
[1719972315358,41.56359407,151.91,151.81,0.8283643]
[1719972315561,6.585,151.86,151.81,0.8283643]
[1719972315874,6.5855,151.85,151.81,0.8283643]
[1719972316037,6.5857,151.85,151.81,0.8283643]
[1719972316237,6.5853,151.86,151.81,0.8283643]
[1719972316462,8.64859407,151.91,151.81,7.4154643]
[1719972316666,6.5846,151.87,151.81,0.8283643]
[1719972316857,6.5842,151.88,151.81,0.8283643]
[1719972317037,6.5853,151.86,151.81,0.8283643]
[1719972317240,6.5853,151.86,151.82,15.0705]
[1719972317454,6.5852,151.86,151.82,15.0705]
[1719972318073,6.5845,151.88,151.82,15.0705]
[1719972318261,6.5837,151.89,151.83,6.2914]
[1719972318438,6.5837,151.89,151.83,6.4614]
[1719972318885,28.40859407,151.91,151.83,6.1214]
[1719972319043,28.40859407,151.91,151.82,15.0705]
[1719972319248,19.76,151.89,151.81,0.8283643]
[1719972319442,6.5849,151.87,151.82,0.34]
[1719972319651,6.5849,151.87,151.82,0.17]
[1719972319854,8.64859407,151.91,151.82,0.34]
[1719972320053,8.64859407,151.91,151.85,6.5853]
[1719972320258,8.64859407,151.91,151.86,0.17]
[1719972320578,6.5816,151.94,151.88,6.584]
[1719972320868,6.5816,151.94,151.87,6.5537]
[1719972320869,6.5811,151.95,151.89,6.9236]
[1719972321178,6.5816,151.94,151.89,0.34]
[1719972321358,8.64859407,151.97,151.89,0.34]
[1719972321359,6.582,151.93,151.89,0.34]
[1719972321674,6.582,151.93,151.88,0.34]
[1719972321969,6.5816,151.94,151.88,0.34]
[1719972322182,6.582,151.93,151.88,0.34]
[1719972322352,6.5816,151.94,151.88,0.34]
[1719972322559,6.5816,151.94,151.88,6.9239]
[1719972322967,6.5837,151.9,151.87,6.5537]
[1719972323280,19.76,151.95,151.87,6.5537]
[1719972323281,6.5829,151.91,151.87,6.5537]
[1719972325261,6.5824,151.92,151.87,6.5537]
[1719972325461,19.76,151.95,151.88,0.34]
[1719972325655,19.76,151.95,151.87,6.5537]
[1719972325969,6.5828,151.91,151.88,0.17]
[1719972326167,19.76,151.95,151.87,6.5537]
[1719972326365,36.2118,151.96,151.88,0.17]
[1719972326671,6.582,151.93,151.88,0.34]
[1719972327177,36.2118,151.96,151.87,6.5537]
[1719972327479,6.5827,151.92,151.88,0.17]
[1719972327869,6.5829,151.91,151.88,0.17]
[1719972328357,6.5824,151.92,151.88,0.17]
[1719972329075,6.5829,151.91,151.87,6.5537]
[1719972329368,36.2118,151.96,151.87,6.5537]
[1719972329677,44.42706074,151.96,151.87,6.5537]
[1719972329896,6.5828,151.92,151.87,6.5537]
[1719972330980,6.5829,151.91,151.87,6.5537]
[1719972331190,19.76,151.93,151.81,22.6961643]
[1719972331348,6.5846,151.87,151.81,29.2829643]
[1719972331958,6.585,151.86,151.81,22.6961643]
[1719972332156,6.5847,151.87,151.81,22.6961643]
[1719972332656,6.5847,151.87,151.81,29.2832643]
[1719972333812,6.5849,151.87,151.81,22.6961643]
[1719972334290,6.5833,151.9,151.83,6.5859]
[1719972334786,8.21526074,151.93,151.81,22.6961643]
[1719972334787,19.76,151.86,151.81,22.6961643]
[1719972335083,6.5863,151.83,151.81,22.6961643]
[1719972335454,19.76,151.86,151.81,22.6961643]
[1719972335772,6.5863,151.83,151.81,0.8283643]
[1719972335958,19.76,151.86,151.81,0.8283643]
[1719972335959,6.586,151.84,151.81,0.8283643]
[1719972336376,8.21526074,151.88,151.81,0.8283643]
[1719972336586,16.4586,151.9,151.81,0.8283643]
[1719972336879,6.5848,151.87,151.81,0.8283643]
[1719972337552,6.585,151.86,151.81,0.8283643]
[1719972337883,16.4586,151.9,151.81,7.4154643]
[1719972338094,6.5845,151.88,151.84,16.5995]
[1719972338257,8.21526074,151.92,151.85,0.17]
[1719972338591,6.81678263,151.95,151.85,0.34]
[1719972338762,19.76,151.97,151.85,0.34]
[1719972338955,26.57854196,151.97,151.85,0.34]
[1719972339154,6.5836,151.9,151.85,0.34]
[1719972339356,6.5836,151.9,151.84,16.5995]
[1719972339568,6.5838,151.89,151.84,16.5995]
[1719972339775,26.23,151.95,151.85,0.17]
[1719972339950,6.5827,151.92,151.85,6.925]
[1719972340153,6.582,151.93,151.86,6.5849]
[1719972340373,14.79636074,151.95,151.87,0.34]
[1719972340578,6.5811,151.95,151.88,6.5837]
[1719972340763,6.5811,151.95,151.89,0.17]
[1719972341083,6.5815,151.94,151.89,0.17]
[1719972341262,6.582,151.93,151.88,0.17]
[1719972341464,6.5815,151.94,151.88,0.17]
[1719972341782,24.66386074,151.99,151.88,6.7541]
[1719972341987,6.5812,151.95,151.89,0.17]
[1719972342278,6.5816,151.94,151.89,0.17]
[1719972342460,6.5821,151.93,151.89,0.17]
[1719972343388,6.5824,151.92,151.85,6.5853]
[1719972343587,6.5824,151.92,151.86,0.34]
[1719972343889,19.76,151.94,151.84,16.5995]
[1719972344178,6.5829,151.91,151.84,16.5995]
[1719972344386,6.5823,151.93,151.86,6.585]
[1719972344588,6.5831,151.91,151.85,6.5854]
[1719972344763,19.76,151.93,151.84,23.1852]
[1719972344962,6.5832,151.9,151.84,23.1852]
[1719972345563,6.5832,151.9,151.84,16.5995]
[1719972345991,6.5832,151.9,151.85,0.34]
[1719972346374,6.5837,151.89,151.85,0.34]
[1719972346572,6.5833,151.9,151.84,16.5995]
[1719972346777,19.76,151.93,151.86,6.5848]
[1719972347085,19.76,151.93,151.85,0.34]
[1719972347287,6.5825,151.92,151.85,6.9253]
[1719972347481,6.5825,151.92,151.86,6.5849]
[1719972348391,6.583,151.91,151.85,6.9253]
[1719972348767,23.37,151.93,151.85,0.34]
[1719972348972,23.37,151.96,151.85,0.34]
[1719972349368,6.5803,151.97,151.91,6.5827]
[1719972349690,23.37,151.97,151.87,16.0683]
[1719972349867,23.37,151.97,151.88,0.34]
[1719972349868,19.76,151.97,151.88,0.34]
[1719972350277,6.5815,151.94,151.88,6.9237]
[1719972350495,6.5812,151.95,151.88,6.9237]
[1719972350799,6.5812,151.95,151.89,6.5835]
[1719972351166,19.76,151.97,151.88,0.34]
[1719972351388,26.3403,151.97,151.91,6.5827]
[1719972351591,26.3403,151.97,151.9,6.7531]
[1719972351884,6.5807,151.96,151.91,0.17]
[1719972352672,6.5812,151.95,151.9,0.34]
[1719972353593,6.5807,151.96,151.9,0.34]
[1719972354386,6.5812,151.95,151.9,0.34]
[1719972354586,19.76,151.97,151.87,16.0683]
[1719972354891,8.21526074,151.95,151.87,16.0683]
[1719972355108,6.5841,151.88,151.83,15.1208]
[1719972355303,6.584,151.89,151.83,15.1208]
[1719972355474,6.584,151.89,151.83,21.7068]
[1719972355992,6.5846,151.87,151.83,15.1208]
[1719972357088,6.5842,151.88,151.83,15.1208]
[1719972357870,26.3837,151.89,151.83,15.1208]
[1719972358070,26.3837,151.89,151.83,21.707]
[1719972358495,26.3837,151.89,151.83,15.1208]
[1719972359603,6.5842,151.88,151.83,15.1208]
[1719972360104,26.3836,151.9,151.83,15.1208]
[1719972360400,26.3834,151.9,151.83,21.707]
[1719972360600,26.3834,151.9,151.83,15.1208]
[1719972360806,26.3834,151.9,151.83,21.7067]
[1719972361014,6.5837,151.89,151.83,21.7067]
[1719972361185,6.5841,151.88,151.83,15.1208]
[1719972361377,28.01526074,151.9,151.81,0.8283643]
[1719972361588,26.3866,151.83,151.81,0.8283643]
[1719972361902,6.5863,151.83,151.81,0.8283643]
[1719972362090,6.5867,151.82,151.81,0.8283643]
[1719972362598,6.5849,151.87,151.81,0.8283643]
[1719972362804,14.79906074,151.89,151.82,6.5863]
[1719972363002,14.79906074,151.89,151.81,0.8283643]
[1719972363003,8.21526074,151.89,151.81,0.8283643]
[1719972363176,6.5846,151.87,151.81,0.8283643]
[1719972363376,14.79936074,151.89,151.81,0.8283643]
[1719972363596,6.5835,151.9,151.84,6.5858]
[1719972363816,6.5837,151.89,151.83,6.5862]
[1719972363997,6.5837,151.89,151.82,6.7566]
[1719972364202,6.5834,151.9,151.83,6.586]
[1719972364402,6.5837,151.89,151.82,0.34]
[1719972364591,6.5837,151.89,151.83,6.5861]
[1719972364792,6.82215499,151.92,151.85,23.104]
[1719972365104,6.5817,151.94,151.87,6.5844]
[1719972365305,6.5817,151.94,151.88,0.34]
[1719972365509,13.40303697,151.95,151.88,6.924]
[1719972365682,6.82193697,151.95,151.88,0.34]
[1719972366103,6.82193697,151.95,151.9,6.5832]
[1719972366310,6.82193697,151.95,151.91,0.17]
[1719972366995,6.82193697,151.95,151.94,6.5815]
[1719972367308,32.6128,152.06,151.94,6.5815]
[1719972367309,32.6128,152.06,151.95,6.5808]
[1719972367610,6.82362234,152.03,151.95,6.5808]
[1719972367795,6.82362234,152.03,151.94,0.17]
[1719972367991,15.03888308,152.03,151.95,0.17]
[1719972368187,34.83888308,152.03,151.95,0.34]
[1719972368396,15.03888308,152.03,151.95,0.34]
[1719972368588,15.03888308,152.03,151.99,21.3928]
[1719972368790,6.5764,152.06,152.0,0.34]
[1719972369002,6.5773,152.04,151.99,21.3928]
[1719972369214,6.82317162,152.07,151.99,21.3928]
[1719972370008,6.5779,152.03,151.99,21.3928]
[1719972370305,19.8,152.06,151.99,21.3928]
[1719972370894,19.8,152.03,151.95,21.3928]
[1719972371292,6.5793,152.0,151.95,21.3928]
[1719972371489,19.8,152.03,151.95,27.9738]
[1719972371490,6.5785,152.01,151.95,27.9738]
[1719972371689,8.21526074,152.06,151.96,0.17]
[1719972371891,8.21526074,152.06,151.96,0.34]
[1719972372113,8.21526074,152.06,151.97,6.5799]
[1719972372295,8.21526074,152.06,151.98,0.34]
[1719972372806,6.578,152.03,151.98,0.34]
[1719972372995,8.21526074,152.06,151.95,21.3928]
[1719972373186,6.5781,152.02,151.95,27.9735]
[1719972373389,6.5781,152.02,151.96,6.5806]
[1719972374092,8.21526074,152.06,151.95,21.3928]
[1719972374093,6.5775,152.04,151.95,21.3928]
[1719972374294,8.21526074,152.06,151.99,6.5793]
[1719972374606,8.21526074,152.06,151.98,0.34]
[1719972374784,8.21526074,152.06,151.96,0.34]
[1719972374785,13.39907162,152.07,152.01,6.5784]
[1719972374989,26.62317162,152.07,151.99,0.34]
[1719972375414,23.26377162,152.07,151.95,6.581]
[1719972375718,23.26377162,152.07,151.93,22.524]
[1719972375719,16.4427,152.05,151.93,22.524]
[1719972375928,28.01526074,152.04,151.93,22.524]
[1719972376126,6.579,152.0,151.93,29.1059]
[1719972376315,28.01526074,152.04,151.93,22.524]
[1719972376611,8.21526074,152.04,151.93,22.524]
[1719972376793,6.5777,152.03,151.96,6.5805]
[1719972376990,19.8,152.05,151.96,6.5803]
[1719972377186,6.578,152.03,151.96,6.5803]
[1719972377390,19.8,152.03,151.93,22.524]
[1719972377605,6.5788,152.01,151.94,6.9215]
[1719972377803,6.5788,152.01,151.94,6.5815]
[1719972378093,6.5785,152.01,151.94,6.5813]
[1719972378421,6.5803,151.97,151.93,22.524]
[1719972378595,28.21526074,152.03,151.93,22.524]
[1719972378997,8.21526074,152.03,151.93,22.524]
[1719972379311,6.5786,152.01,151.94,6.5814]
[1719972379690,6.578,152.02,151.95,6.7509]
[1719972380101,6.5777,152.03,151.97,6.5801]
[1719972380713,6.5777,152.03,151.96,0.17]
[1719972380714,6.5771,152.05,151.98,0.17]
[1719972381096,6.5771,152.05,151.96,0.17]
[1719972381496,6.5771,152.05,151.98,6.5797]
[1719972381802,6.5771,152.05,151.99,0.17]
[1719972382221,6.5772,152.04,151.99,0.17]
[1719972382407,6.576,152.07,152.0,28.8127]
[1719972382721,6.576,152.07,152.01,6.9184]
[1719972383104,6.5754,152.09,152.01,0.34]
[1719972383304,6.87107042,152.11,152.01,0.34]
[1719972383616,6.5745,152.11,152.01,0.34]
[1719972384308,6.5737,152.12,152.05,6.5766]
[1719972384527,6.5737,152.12,152.06,0.34]
[1719972385521,6.5752,152.09,152.0,22.2342]
[1719972385723,6.5755,152.08,152.02,6.578]
[1719972385932,19.8,152.14,152.03,0.34]
[1719972386103,19.8,152.14,152.01,0.34]
[1719972387507,28.01526074,152.15,152.01,0.34]
[1719972387708,28.01526074,152.15,152.02,22.2407]
[1719972387919,28.01526074,152.15,152.03,0.17]
[1719972388333,28.01526074,152.15,152.06,6.5762]
[1719972388629,19.8,152.15,152.07,6.9157]
[1719972388836,19.8,152.16,152.08,0.34]
[1719972389403,19.8,152.16,152.06,6.5762]
[1719972389404,19.8,152.16,152.07,0.17]
[1719972389620,6.5734,152.13,152.07,0.34]
[1719972390036,6.5728,152.14,152.07,0.34]
[1719972390241,6.5733,152.13,152.07,6.9158]
[1719972390434,6.5733,152.13,152.07,0.34]
[1719972390740,6.5737,152.12,152.07,0.34]
[1719972390950,36.2307,152.16,152.02,22.0707]
[1719972391116,28.01526074,152.16,152.02,22.0707]
[1719972391452,19.8,152.1,152.02,22.0707]
[1719972391639,6.5771,152.05,152.01,2.80421668]
[1719972391816,19.8,152.08,152.01,2.80421668]
[1719972391817,6.5775,152.04,152.01,2.80421668]
[1719972392017,6.5775,152.04,151.98,28.1674]
[1719972392213,19.8,152.08,151.98,21.5876]
[1719972392439,6.5773,152.04,151.98,21.5876]
[1719972392830,6.5768,152.05,151.99,6.5792]
[1719972393031,19.8,152.08,151.98,21.5876]
[1719972393218,6.5768,152.05,151.98,21.5876]
[1719972393423,19.8,152.08,151.98,21.5876]
[1719972393424,6.5756,152.08,152.02,6.5777]
[1719972393728,6.5756,152.08,152.01,6.5784]
[1719972393936,6.576,152.07,151.98,21.5876]
[1719972394149,6.5742,152.11,151.98,21.5876]
[1719972394329,6.5738,152.12,152.05,6.5766]
[1719972394641,8.21526074,152.13,152.07,21.3382]
[1719972394642,6.5733,152.13,152.07,21.3382]
[1719972394947,6.5732,152.14,152.08,0.34]
[1719972395127,23.29839784,152.16,152.08,0.34]
[1719972395316,6.5729,152.14,152.08,6.9154]
[1719972396146,26.66749784,152.16,152.08,0.34]
[1719972396147,6.5739,152.12,152.08,0.34]
[1719972396357,6.5734,152.13,152.07,21.3382]
[1719972396558,6.5734,152.13,152.08,0.34]
[1719972398344,26.66749784,152.16,152.08,0.34]
[1719972398546,28.01526074,152.17,152.08,0.34]
[1719972398750,19.8,152.17,152.08,0.34]
[1719972399047,6.5732,152.14,152.08,6.9154]
[1719972399252,6.5732,152.14,152.08,0.34]
[1719972400032,6.5725,152.15,152.08,0.34]
[1719972400270,6.572,152.16,152.08,0.34]
[1719972400633,19.8,152.18,152.08,0.34]
[1719972400832,28.01526074,152.18,152.08,0.34]
[1719972401033,6.5725,152.15,152.08,0.34]
[1719972401331,19.8,152.17,152.08,0.34]
[1719972402249,6.573,152.14,152.08,6.9151]
[1719972402448,19.8,152.17,152.1,6.5745]
[1719972402633,28.01526074,152.18,152.11,0.34]
[1719972402833,6.5727,152.15,152.1,0.17]
[1719972403135,6.5727,152.15,152.09,6.5749]
[1719972403336,6.5727,152.15,152.1,0.34]
[1719972403556,6.5721,152.16,152.1,6.9145]
[1719972403961,6.5716,152.17,152.11,6.574]
[1719972405049,6.5707,152.2,152.1,0.34]
[1719972405359,6.5706,152.2,152.12,6.0745]
[1719972405679,6.5708,152.19,152.13,0.34]
[1719972406635,19.8,152.22,152.13,0.34]
[1719972406636,6.5704,152.2,152.13,0.34]
[1719972407073,6.5699,152.21,152.13,0.34]
[1719972407354,6.87002837,152.23,152.13,0.34]
[1719972407550,28.01526074,152.24,152.13,0.34]
[1719972408342,8.21526074,152.24,152.13,0.34]
[1719972408956,6.5691,152.23,152.13,0.34]
[1719972409156,28.01526074,152.24,152.13,0.34]
[1719972410266,6.5699,152.21,152.13,0.34]
[1719972410944,6.5693,152.23,152.13,0.34]
[1719972411144,19.8,152.23,152.13,0.34]
[1719972411350,6.5694,152.22,152.13,0.34]
[1719972411960,19.8,152.22,152.12,6.0745]
[1719972412262,6.5699,152.21,152.12,6.0745]
[1719972413064,6.5695,152.22,152.12,6.0745]
[1719972413370,6.5698,152.21,152.13,0.34]
[1719972413653,19.8,152.23,152.12,6.0745]
[1719972413654,36.2227,152.23,152.12,6.0745]
[1719972413862,6.5715,152.18,152.12,6.0745]
[1719972414064,26.3707,152.2,152.12,6.0745]
[1719972414642,6.5707,152.2,152.12,6.0745]
[1719972414959,8.21526074,152.22,152.12,6.0745]
[1719972415144,8.21526074,152.22,152.13,0.34]
[1719972415145,14.78476074,152.22,152.13,0.34]
[1719972415347,6.57,152.21,152.13,0.34]
[1719972416554,6.5703,152.2,152.13,0.34]
[1719972417143,6.57,152.21,152.13,0.34]
[1719972417436,6.5703,152.2,152.13,0.34]
[1719972417656,14.78506074,152.22,152.13,0.34]
[1719972417864,6.5698,152.22,152.13,0.34]
[1719972418370,6.86963643,152.26,152.14,21.6099]
[1719972418662,6.5677,152.26,152.15,20.34]
[1719972419242,19.8,152.26,152.15,20.34]
[1719972419445,6.5689,152.24,152.15,20.34]
[1719972419766,19.8,152.23,152.15,0.34]
[1719972420064,19.8,152.22,152.14,21.6099]
[1719972420371,6.5707,152.19,152.14,21.6099]
[1719972420571,6.57,152.21,152.14,21.6099]
[1719972420757,26.3698,152.22,152.14,21.6099]
[1719972421251,6.57,152.21,152.14,21.6099]
[1719972421662,6.5703,152.2,152.14,21.6099]
[1719972421869,19.8,152.2,152.14,21.6099]
[1719972422073,26.3704,152.2,152.14,21.6099]
[1719972422243,6.5704,152.2,152.14,21.6099]
[1719972422442,6.5699,152.21,152.14,21.6099]
[1719972422639,16.4198,152.26,152.14,21.6099]
[1719972422950,27.7588163,152.25,152.14,21.6099]
[1719972423157,6.5695,152.22,152.14,21.6099]
[1719972423356,6.5699,152.21,152.15,0.34]
[1719972424162,6.5704,152.2,152.15,0.34]
[1719972424470,6.5704,152.2,152.14,21.6099]
[1719972424471,6.5715,152.18,152.14,21.6099]
[1719972424853,6.5708,152.19,152.14,21.6099]
[1719972425176,26.3707,152.19,152.14,21.6099]
[1719972425670,6.5711,152.18,152.14,21.6099]
[1719972425847,26.3708,152.19,152.14,21.6099]
[1719972427476,19.8,152.17,152.1,22.1611]
[1719972427683,6.5732,152.14,152.1,22.1611]
[1719972427879,19.8,152.14,152.06,22.1611]
[1719972428083,6.5747,152.1,152.06,22.1611]
[1719972428273,19.8,152.14,152.06,22.1611]
[1719972428578,6.5742,152.11,152.06,22.1611]
[1719972428776,19.8,152.12,152.06,22.1611]
[1719972429076,19.8,152.14,152.08,6.5754]
[1719972429283,26.3733,152.13,152.07,6.5759]
[1719972429462,6.5738,152.12,152.06,22.1611]
[1719972429780,6.5746,152.1,152.06,22.1611]
[1719972430862,26.3742,152.11,152.06,22.1611]
[1719972431405,6.87096434,152.14,152.06,22.1611]
[1719972431406,6.5738,152.12,152.06,22.1611]
[1719972431575,26.3733,152.13,152.06,22.1611]
[1719972431880,26.3733,152.13,152.06,28.7374]
[1719972432178,26.3733,152.13,152.07,0.34]
[1719972432476,6.5738,152.12,152.07,0.34]
[1719972432677,19.8,152.13,152.07,0.34]
[1719972432977,6.5734,152.13,152.07,0.34]
[1719972433479,6.5742,152.11,152.07,0.34]
[1719972433670,19.8,152.14,152.06,22.1611]
[1719972433978,6.5749,152.1,152.06,22.1611]
[1719972434169,27.5588163,152.13,152.07,0.34]
[1719972434486,6.5742,152.11,152.07,0.34]
[1719972434989,6.5748,152.1,152.06,22.1611]
[1719972435889,27.5588163,152.13,152.07,0.34]
[1719972436068,34.1324163,152.13,152.07,0.34]
[1719972436385,27.5588163,152.13,152.07,0.34]
[1719972436586,6.574,152.12,152.07,0.34]
[1719972436784,6.5742,152.11,152.07,0.34]
[1719972436968,6.5747,152.1,152.07,0.17]
[1719972437283,6.5747,152.1,152.06,22.1611]
[1719972437479,6.5742,152.11,152.06,22.1611]
[1719972438067,19.8,152.12,152.01,6.2663]
[1719972438271,6.5749,152.1,152.04,6.5771]
[1719972438456,34.1329163,152.12,152.01,6.2663]
[1719972438657,27.5588163,152.12,152.05,6.5766]
[1719972439287,27.5588163,152.12,152.06,0.34]
[1719972439585,6.5745,152.11,152.06,0.34]
[1719972439757,31.0688163,152.12,152.06,0.34]
[1719972439961,23.31,152.12,152.07,16.2639]
[1719972440168,29.8841,152.12,152.08,0.34]
[1719972440368,43.11,152.12,152.07,16.2639]
[1719972442069,43.11,152.12,152.03,6.5773]
[1719972442070,19.8,152.1,152.02,15.4139]
[1719972442272,23.31,152.09,152.02,15.4139]
[1719972442782,23.31,152.09,152.04,6.5771]
[1719972442995,6.5746,152.1,152.04,6.5771]
[1719972443288,6.5746,152.1,152.05,0.17]
[1719972443487,6.5752,152.09,152.05,0.34]
[1719972444373,6.5742,152.11,152.05,0.34]
[1719972444569,57.74193252,152.12,152.05,0.34]
[1719972444781,31.0688163,152.12,152.06,6.5761]
[1719972444980,16.4293,152.17,152.08,6.5852]
[1719972445298,6.5725,152.15,152.09,22.0324]
[1719972445665,6.5735,152.13,152.09,15.4574]
[1719972445879,50.8628617,152.17,152.09,15.4574]
[1719972446260,6.5732,152.14,152.09,15.4574]
[1719972446490,14.6335617,152.17,152.09,15.4574]
[1719972447179,6.5721,152.16,152.09,15.4574]
[1719972447472,14.3304163,152.17,152.09,15.4574]
[1719972447865,6.87364062,152.19,152.11,15.9419]
[1719972448068,6.87364062,152.19,152.13,6.3845]
[1719972448270,23.31,152.25,152.14,0.34]
[1719972448479,6.569,152.23,152.14,0.34]
[1719972448895,23.31,152.25,152.15,15.9419]
[1719972449202,19.8,152.26,152.16,0.34]
[1719972449203,6.5677,152.26,152.16,0.34]
[1719972449374,6.5683,152.25,152.16,0.34]
[1719972449895,6.5677,152.27,152.17,6.4543]
[1719972450099,6.5677,152.27,152.18,0.34]
[1719972450470,6.5679,152.26,152.18,0.34]
[1719972452392,16.4151,152.3,152.18,0.34]
[1719972452393,6.5682,152.25,152.18,0.34]
[1719972453187,6.5677,152.26,152.18,0.34]
[1719972453380,19.8,152.28,152.18,0.34]
[1719972453916,6.568,152.26,152.18,0.34]
[1719972454707,6.5673,152.27,152.18,0.34]
[1719972458089,19.8,152.27,152.18,0.34]
[1719972458486,6.5682,152.25,152.18,0.34]
[1719972461609,6.5686,152.24,152.18,0.34]
[1719972461790,6.5682,152.25,152.18,0.34]
[1719972464012,26.3677,152.26,152.18,0.34]
[1719972464184,6.5677,152.26,152.18,0.34]
[1719972464789,26.3674,152.27,152.18,0.34]
[1719972465181,6.568,152.26,152.18,0.34]
[1719972466484,19.8,152.29,152.18,0.34]
[1719972466711,19.8,152.27,152.18,0.34]
[1719972466895,6.5707,152.19,152.15,15.9419]
[1719972467798,26.3693,152.23,152.15,15.9419]
[1719972468004,6.5695,152.22,152.15,15.9419]
[1719972468205,6.5695,152.22,152.16,0.34]
[1719972469097,20.0,152.26,152.16,0.34]
[1719972469301,62.68109662,152.3,152.16,0.34]
[1719972469302,6.5684,152.25,152.16,0.34]
[1719972469692,6.5686,152.24,152.16,0.34]
[1719972469893,6.5682,152.25,152.16,0.34]
[1719972470108,6.5686,152.24,152.16,0.34]
[1719972470310,6.5685,152.25,152.16,0.34]
[1719972470487,19.8,152.26,152.16,0.34]
[1719972470696,6.5685,152.24,152.16,0.34]
[1719972471088,26.3678,152.26,152.16,0.34]
[1719972471710,6.5682,152.25,152.16,0.34]
[1719972472089,6.5686,152.24,152.16,0.34]
[1719972472820,6.5681,152.25,152.16,0.34]
[1719972473517,26.3664,152.29,152.17,23.1769]
[1719972473814,6.87018331,152.3,152.18,0.34]
[1719972473990,6.5664,152.29,152.18,0.34]
[1719972474195,6.5664,152.29,152.19,21.8441]
[1719972474394,6.5664,152.29,152.2,0.34]
[1719972475099,6.5661,152.3,152.2,0.34]
[1719972475606,6.5664,152.29,152.2,0.34]
[1719972476011,6.5669,152.28,152.2,0.34]
[1719972476516,6.86855286,152.31,152.21,22.121]
[1719972476730,0.8283643,152.35,152.28,6.5668]
[1719972476896,0.8283643,152.35,152.26,6.5673]
[1719972477220,23.26,152.33,152.27,0.17]
[1719972477596,6.5654,152.32,152.27,0.17]
[1719972479020,43.06,152.33,152.26,0.17]
[1719972479021,19.8,152.31,152.26,0.17]
[1719972479531,26.3659,152.31,152.24,6.5681]
[1719972479705,26.3659,152.31,152.25,0.34]
[1719972479706,6.5659,152.31,152.25,0.34]
[1719972479909,23.26,152.33,152.25,6.9078]
[1719972480099,43.06,152.33,152.25,6.9078]
[1719972480304,6.5652,152.32,152.25,6.9078]
[1719972480524,6.5656,152.31,152.25,6.9078]